bitfinex/quotes_ETHUSD_20241216
["timestamp","ask_amount","ask_price","bid_price","bid_amount"]
[1734372881459,0.7715,4037.7,4036.2,1.79552]
[1734372881657,0.7715,4037.7,4036.5,0.99094]
[1734372881658,0.874811,4037.6,4036.5,0.99094]
[1734372881963,0.874811,4037.6,4036.6,0.99093]
[1734372882260,0.874811,4037.6,4035.8,0.7557]
[1734372882261,0.55,4037.4,4035.8,0.7557]
[1734372882433,8.5,4037.5,4035.8,0.7557]
[1734372882434,0.55,4037.2,4035.8,1.74682]
[1734372882761,0.55,4037.2,4036.2,0.99103]
[1734372882928,0.55,4037.2,4035.8,1.74682]
[1734372882929,0.55,4037.2,4036.3,0.99099]
[1734372883260,0.55,4037.2,4036.6,0.99092]
[1734372883459,0.55,4037.2,4036.0,0.99108]
[1734372883460,0.55,4037.2,4036.9,0.99085]
[1734372883629,5.26489801,4038.0,4036.7,0.60152437]
[1734372883630,8.5,4038.0,4036.7,0.60152437]
[1734372883964,9.289,4038.0,4037.2,0.99077]
[1734372884166,9.289,4038.0,4036.8,1.12765244]
[1734372884167,9.289,4038.0,4037.3,0.99075]
[1734372884467,9.289,4038.0,4036.3,0.991]
[1734372884468,8.5,4037.9,4036.3,0.991]
[1734372884760,8.5,4037.9,4037.7,0.99065]
[1734372884761,9.4289,4037.9,4037.7,0.99065]
[1734372884967,9.4289,4037.9,4037.1,0.30902303]
[1734372884968,0.9289,4037.9,4037.1,0.30902303]
[1734372885121,0.789,4038.0,4037.3,0.99076]
[1734372885318,0.789,4038.0,4037.0,0.99082]
[1734372885544,0.789,4038.0,4037.5,0.9907]
[1734372885545,9.289,4038.0,4037.5,0.9907]
[1734372886271,2.74225235,4038.4,4037.5,0.9907]
[1734372886560,9.2595,4038.4,4037.4,0.99071]
[1734372886761,0.8063,4038.2,4037.1,0.99078]
[1734372887153,9.3063,4038.1,4037.1,0.99078]
[1734372887467,0.8063,4038.1,4036.4,0.99098]
[1734372887665,0.55,4038.0,4036.4,0.99098]
[1734372887960,0.71817431,4038.0,4036.5,0.79047103]
[1734372888166,0.71817431,4038.0,4037.2,0.99076]
[1734372888333,0.71817431,4038.0,4037.0,0.99083]
[1734372889151,0.71817431,4038.0,4037.1,0.9908]
[1734372889470,0.71817431,4038.0,4036.6,0.99093]
[1734372889471,0.55,4037.8,4036.9,0.99085]
[1734372889936,0.55,4037.6,4036.9,0.99085]
[1734372891241,0.55,4037.6,4036.4,3.0]
[1734372891453,0.55,4037.6,4036.8,0.99086]
[1734372891653,0.55,4037.6,4036.6,0.99093]
[1734372891858,0.8285,4038.1,4036.8,0.8213]
[1734372892062,0.8285,4038.1,4037.8,0.99062]
[1734372892396,0.8285,4038.1,4038.0,0.99058]
[1734372892673,0.8285,4038.1,4036.8,3.8213]
[1734372892845,0.8285,4038.5,4036.8,3.8213]
[1734372893048,0.8285,4038.5,4038.4,0.99049]
[1734372893260,0.8285,4039.2,4038.5,0.99045]
[1734372893461,0.8285,4039.2,4038.1,0.99054]
[1734372893778,0.8285,4038.8,4037.2,3.8213]
[1734372893938,0.8285,4038.5,4037.5,0.9907]
[1734372894768,0.55,4038.4,4037.5,0.9907]
[1734372895379,0.55,4038.4,4037.3,0.99073]
[1734372895575,0.55,4038.2,4037.0,0.99083]
[1734372895885,0.55,4038.2,4037.6,0.99068]
[1734372896247,0.55,4038.2,4037.7,0.99065]
[1734372897264,0.55,4038.2,4037.5,0.9907]
[1734372897465,0.55,4038.3,4037.3,0.99076]
[1734372897663,0.55,4038.3,4037.6,0.99068]
[1734372898379,0.55,4038.3,4037.7,0.99065]
[1734372899284,0.55,4038.3,4037.5,0.99069]
[1734372899888,0.55,4038.3,4037.6,0.99068]
[1734372900091,0.55,4038.1,4037.6,0.99068]
[1734372901067,0.55,4037.9,4036.8,3.0]
[1734372901263,0.55,4037.9,4037.6,0.99067]
[1734372901483,0.55,4037.9,4036.8,3.0]
[1734372901655,0.55,4037.9,4037.5,0.99069]
[1734372901855,0.55,4037.9,4037.6,0.99068]
[1734372902084,0.55,4037.9,4036.8,3.0]
[1734372902265,0.55,4037.9,4037.6,0.99068]
[1734372902467,0.55,4037.9,4036.9,0.56467825]
[1734372902680,0.55,4037.9,4037.8,0.99063]
[1734372902881,0.55,4038.2,4038.1,0.99056]
[1734372903083,0.8244,4039.2,4038.1,0.30902303]
[1734372903298,0.8244,4039.2,4038.1,1.11382303]
[1734372903472,0.8244,4039.2,4039.1,0.99031]
[1734372904498,1.3744,4039.2,4039.1,0.99031]
[1734372904867,0.90186774,4039.5,4039.1,0.99031]
[1734372905070,0.781,4039.5,4039.3,0.99026]
[1734372905257,0.781,4039.5,4038.4,0.99049]
[1734372905258,0.781,4039.5,4039.1,0.99031]
[1734372905561,0.781,4039.5,4038.8,0.99037]
[1734372905562,0.781,4039.5,4039.2,0.99029]
[1734372905999,0.781,4039.5,4038.9,0.99036]
[1734372906360,0.781,4039.5,4038.2,3.99053]
[1734372906361,0.7595,4039.1,4037.7,0.7961]
[1734372906603,9.05,4039.4,4037.3,0.7961]
[1734372906604,0.7595,4038.7,4037.3,0.7961]
[1734372906901,3.0261,4038.6,4037.5,0.9907]
[1734372907054,8.5,4038.5,4036.6,2.74225235]
[1734372907258,9.05,4038.3,4037.5,0.9907]
[1734372908069,9.05,4038.3,4036.9,0.8307]
[1734372908272,9.05,4038.3,4037.5,0.99069]
[1734372908698,9.05,4038.3,4036.9,0.8307]
[1734372908699,3.29225235,4038.1,4036.9,0.8307]
[1734372908916,0.8272,4037.8,4036.5,1.80404]
[1734372909096,0.55,4037.7,4036.5,1.80404]
[1734372909461,0.55,4037.7,4037.0,0.99082]
[1734372910129,0.55,4037.7,4037.1,0.9908]
[1734372910315,0.55,4037.5,4037.1,0.9908]
[1734372910512,0.55,4037.5,4036.8,0.99086]
[1734372910718,0.55,4037.5,4036.2,4.98206]
[1734372910939,0.55,4037.5,4036.7,0.9909]
[1734372911240,0.55,4037.5,4036.3,3.0]
[1734372911241,2.74225235,4036.8,4036.0,0.99106]
[1734372911530,2.74225235,4036.3,4035.6,0.99117]
[1734372911694,0.55,4036.5,4035.7,0.99115]
[1734372912085,0.55,4036.5,4035.8,0.99112]
[1734372912733,0.55,4036.5,4034.8,0.99137]
[1734372912734,0.55,4036.5,4034.9,0.99135]
[1734372912890,0.55,4036.5,4036.4,0.99098]
[1734372913090,8.5,4037.0,4036.4,0.99098]
[1734372913382,8.5,4037.0,4036.1,0.28985637]
[1734372913557,8.5,4037.0,4036.9,0.99085]
[1734372913853,2.87997235,4037.6,4037.1,0.99079]
[1734372913854,3.65727235,4037.6,4037.1,0.99079]
[1734372914134,3.65727235,4037.6,4037.0,0.99083]
[1734372914540,0.89951085,4037.6,4036.4,0.99098]
[1734372914835,3.51955235,4038.0,4037.5,0.99071]
[1734372914991,0.1225189,4037.8,4037.0,0.99083]
[1734372915199,3.51955235,4038.0,4036.9,0.99085]
[1734372915396,3.51955235,4038.0,4037.0,0.99082]
[1734372915741,0.51236363,4037.9,4037.0,0.99082]
[1734372916042,0.51236363,4037.9,4037.1,0.9908]
[1734372916348,3.90221062,4037.9,4037.1,0.9908]
[1734372916641,0.55,4037.8,4037.1,0.9908]
[1734372917013,0.55,4037.8,4036.4,0.99098]
[1734372917192,0.12125417,4037.9,4036.5,0.181388]
[1734372917392,0.12125417,4037.9,4037.6,0.99067]
[1734372917789,0.7773,4038.0,4037.2,1.98156]
[1734372917994,0.7773,4038.0,4037.9,0.99061]
[1734372919149,0.12144627,4038.1,4038.0,0.99058]
[1734372919293,0.67144627,4038.1,4038.0,0.99058]
[1734372919488,0.55,4038.1,4038.0,0.99058]
[1734372919740,0.55,4038.3,4038.0,0.99058]
[1734372920242,0.68823,4038.3,4038.0,0.99058]
[1734372920966,0.8323,4038.4,4037.1,3.0]
[1734372920967,0.8323,4038.4,4037.7,0.02476539]
[1734372921146,0.8323,4038.4,4037.4,3.0]
[1734372921327,0.8323,4038.4,4037.1,3.0]
[1734372921513,1.54173566,4038.3,4037.7,0.99065]
[1734372921712,0.8323,4038.4,4037.7,0.99065]
[1734372921713,1.54173566,4038.2,4037.7,0.99065]
[1734372922572,0.55,4038.1,4037.8,0.99062]
[1734372922729,0.55,4038.1,4037.4,0.99071]
[1734372923055,0.55,4038.2,4037.7,0.99065]
[1734372923260,0.55,4038.3,4038.2,0.99054]
[1734372923460,0.55,4038.3,4037.5,0.8061]
[1734372923461,0.55,4038.3,4037.9,0.99059]
[1734372923610,2.10146352,4038.1,4037.4,0.99072]
[1734372923811,2.10146352,4038.1,4036.6,0.8061]
[1734372923812,1.55146352,4038.0,4037.7,0.99066]
[1734372924014,0.55,4037.9,4036.6,0.8061]
[1734372924461,0.55,4037.9,4037.7,0.99066]
[1734372924696,2.10146352,4037.9,4037.7,0.99066]
[1734372924812,2.51830954,4037.9,4037.2,0.99078]
[1734372925007,2.10146352,4037.9,4036.7,3.9909]
[1734372925276,2.10146352,4037.9,4037.1,0.99079]
[1734372925558,0.55,4037.7,4037.1,0.99079]
[1734372925769,0.55,4037.7,4036.7,0.9909]
[1734372925932,2.10146352,4037.7,4036.7,0.1797]
[1734372926275,0.55,4037.8,4037.2,0.99076]
[1734372926413,0.55,4037.8,4036.7,3.0]
[1734372926414,2.10146352,4037.8,4037.3,0.99074]
[1734372927310,1.55146352,4037.7,4037.3,0.99074]
[1734372927516,0.55,4037.6,4037.0,0.99082]
[1734372927849,2.10146352,4037.6,4036.6,0.8061]
[1734372928148,0.55,4037.6,4036.6,0.8061]
[1734372928487,2.10146352,4037.7,4037.5,0.99071]
[1734372928656,0.55,4037.7,4037.5,0.99071]
[1734372929337,0.55,4037.7,4037.6,0.99068]
[1734372929852,2.10146352,4037.8,4036.8,0.99088]
[1734372930156,2.10146352,4037.8,4037.1,0.9908]
[1734372930157,1.3123,4037.6,4037.1,0.9908]
[1734372930314,1.3123,4037.6,4036.7,0.479705]
[1734372930315,2.86376352,4037.6,4037.4,0.99072]
[1734372930862,2.86376352,4037.6,4035.3,0.99125]
[1734372930863,0.8246,4037.3,4035.3,0.99125]
[1734372931029,0.55,4036.6,4036.2,0.99102]
[1734372931226,1.55259734,4036.5,4036.2,0.99102]
[1734372931431,1.55259734,4036.5,4035.6,0.99115]
[1734372931432,0.55,4036.4,4035.6,0.99115]
[1734372931740,0.55,4036.4,4035.9,0.9911]
[1734372931741,0.55,4036.2,4035.9,0.9911]
[1734372932288,0.55,4036.2,4035.2,0.175414]
[1734372932289,0.55,4036.2,4036.1,0.99105]
[1734372932497,0.765,4036.3,4036.1,0.99105]
[1734372932498,0.55,4036.3,4036.1,0.99105]
[1734372933164,1.55259734,4036.4,4036.1,0.99105]
[1734372933165,0.55,4036.4,4036.1,0.99105]
[1734372933474,2.58766223,4036.8,4036.4,0.99098]
[1734372933475,1.55259734,4036.6,4036.4,0.99098]
[1734372933685,3.10318661,4037.2,4037.0,0.99083]
[1734372933686,1.55259734,4037.2,4037.0,0.99083]
[1734372933846,1.55259734,4037.4,4037.2,0.99078]
[1734372934187,1.55259734,4037.5,4037.4,0.99073]
[1734372934397,1.55259734,4037.7,4037.4,0.99073]
[1734372935048,1.55259734,4037.7,4036.5,3.0]
[1734372935249,1.55259734,4037.7,4037.6,0.99068]
[1734372935496,1.55259734,4037.9,4037.4,0.818]
[1734372935791,0.7546,4038.5,4037.4,0.818]
[1734372935792,0.12116077,4038.0,4037.4,0.818]
[1734372936020,1.55259734,4038.1,4037.6,0.99067]
[1734372936208,1.55259734,4038.1,4037.8,0.99062]
[1734372936350,3.34058884,4038.5,4037.1,3.0]
[1734372936351,1.55259734,4038.4,4037.2,0.02476575]
[1734372936551,2.30719734,4038.5,4037.9,0.9906]
[1734372936896,2.30719734,4038.5,4037.1,3.0]
[1734372936897,1.55259734,4038.3,4037.1,3.0]
[1734372937065,1.55259734,4038.2,4037.3,0.99074]
[1734372937296,0.7546,4038.5,4037.0,0.8037]
[1734372937297,1.55259734,4038.3,4037.2,0.99078]
[1734372937455,2.94759096,4038.5,4037.0,0.8037]
[1734372937456,1.55259734,4038.4,4037.9,0.9906]
[1734372937819,0.55,4038.2,4037.9,0.9906]
[1734372938094,0.55,4038.2,4038.0,0.99058]
[1734372938301,1.55259734,4038.5,4038.0,0.99058]
[1734372938500,2.48880567,4039.0,4038.7,0.99041]
[1734372938665,0.813,4039.0,4038.7,0.99041]
[1734372939000,2.36559734,4039.0,4038.7,0.9904]
[1734372939216,1.55259734,4039.1,4039.0,0.99034]
[1734372939465,12.47307289,4039.5,4038.1,0.99054]
[1734372939466,1.55259734,4039.8,4039.3,0.99027]
[1734372939587,0.12489607,4039.7,4039.5,0.99021]
[1734372939814,0.7609,4039.9,4039.6,0.99019]
[1734372940101,0.7609,4039.9,4038.8,0.8043]
[1734372940286,0.7609,4039.9,4039.2,0.99028]
[1734372940488,4.39028549,4039.9,4038.5,3.0]
[1734372940687,1.55259734,4039.7,4038.4,0.77]
[1734372941023,1.55259734,4039.7,4038.1,3.99055]
[1734372941024,3.38575558,4039.4,4038.1,3.99055]
[1734372941229,0.70084827,4039.4,4038.2,0.99054]
[1734372941446,1.55259734,4039.6,4038.0,0.7774]
[1734372941575,0.55,4039.6,4038.8,0.99038]
[1734372942279,5.48835292,4039.6,4038.5,0.99045]
[1734372942518,1.3779,4039.0,4038.2,0.99053]
[1734372942723,1.3779,4039.0,4037.9,0.99058]
[1734372942919,1.3779,4039.0,4037.8,0.99062]
[1734372943216,1.3779,4039.0,4038.0,0.99057]
[1734372943422,0.55,4038.8,4038.0,0.99057]
[1734372944385,0.55,4038.8,4038.1,0.99056]
[1734372944586,2.07012978,4039.3,4037.3,1.009248]
[1734372944587,1.55259734,4039.4,4037.9,0.99061]
[1734372944777,8.62095716,4039.6,4038.2,0.99051]
[1734372945140,0.12095716,4039.6,4039.3,0.99026]
[1734372945679,0.12095716,4039.6,4038.2,3.0]
[1734372945874,0.12095716,4039.6,4039.2,0.99028]
[1734372946329,0.12095716,4039.6,4038.3,0.37932]
[1734372946476,0.12095716,4039.6,4039.4,0.99024]
[1734372947116,0.12095716,4039.6,4038.3,0.37932]
[1734372947363,0.12095716,4039.6,4038.3,3.0]
[1734372947520,0.55,4039.5,4039.3,0.99027]
[1734372947898,0.55,4039.5,4038.7,0.99039]
[1734372948197,0.55,4039.5,4038.4,0.99048]
[1734372948418,0.55,4039.5,4038.2,3.0]
[1734372948635,0.55,4039.5,4037.3,0.179448]
[1734372948636,0.55,4039.3,4038.4,0.99047]
[1734372948920,0.55,4039.1,4038.4,0.99047]
[1734372949123,0.55,4039.1,4037.7,0.8053]
[1734372949291,0.55,4039.1,4038.3,0.99049]
[1734372949499,0.55,4039.1,4037.9,0.99061]
[1734372949707,0.701525,4039.1,4038.0,0.99058]
[1734372949926,0.701525,4039.1,4037.9,0.99061]
[1734372950224,0.701525,4039.1,4037.7,0.8053]
[1734372950439,0.701525,4039.1,4038.3,0.99051]
[1734372950726,0.701525,4039.1,4037.7,0.8053]
[1734372950953,0.7643,4039.8,4039.3,0.99027]
[1734372951157,1.55259734,4039.9,4038.7,0.7639]
[1734372951158,0.12417881,4040.2,4038.8,1.264558]
[1734372951336,0.12417881,4040.2,4038.9,3.0]
[1734372951503,0.12417881,4040.2,4039.7,0.99015]
[1734372951706,0.7643,4040.3,4038.7,0.7639]
[1734372951931,0.7643,4040.3,4038.9,0.99036]
[1734372952225,0.7643,4040.8,4039.3,3.0]
[1734372952418,0.7643,4040.8,4039.9,0.99011]
[1734372952619,0.7643,4040.8,4040.3,0.99]
[1734372952939,0.7643,4040.8,4040.5,0.98996]
[1734372953262,2.07012978,4041.6,4038.9,3.0]
[1734372953263,0.7537,4041.9,4040.7,3.0]
[1734372953555,0.7537,4041.9,4040.6,0.77734891]
[1734372953556,3.2278,4041.9,4040.6,4.74253]
[1734372953756,0.33538215,4041.8,4040.6,0.98993]
[1734372953963,2.47433,4041.5,4040.3,0.99001]
[1734372954113,0.8042,4041.6,4040.7,0.98991]
[1734372954319,0.8042,4041.6,4039.8,1.78752]
[1734372954663,0.55,4041.4,4040.4,0.98999]
[1734372955465,0.55,4041.2,4040.4,0.98999]
[1734372955615,0.55,4041.2,4039.8,0.7974]
[1734372956013,0.55,4041.2,4040.5,0.98997]
[1734372956450,0.55,4041.2,4040.5,0.98996]
[1734372956752,0.55,4041.0,4039.9,3.0]
[1734372957059,0.8268,4041.3,4040.0,2.00492798]
[1734372957237,0.33538215,4041.8,4041.2,0.9898]
[1734372957238,0.7789,4041.7,4041.2,0.9898]
[1734372957446,0.7789,4041.7,4040.1,0.7748]
[1734372957447,0.7789,4041.7,4041.3,0.98977]
[1734372958214,0.7789,4041.7,4041.0,0.98985]
[1734372958428,0.12222051,4042.0,4041.4,0.98975]
[1734372958768,0.12222051,4042.0,4039.9,3.0]
[1734372958769,3.38617242,4041.7,4040.5,0.98995]
[1734372959069,2.47427,4041.6,4040.5,0.98995]
[1734372959228,0.8135,4041.5,4040.5,0.98995]
[1734372959571,0.8135,4041.5,4039.5,0.99021]
[1734372959572,3.38617242,4040.7,4039.4,0.99024]
[1734372959874,0.55,4040.5,4039.4,0.99024]
[1734372960418,3.02497,4040.5,4039.2,0.99027]
[1734372960621,0.55,4040.3,4039.2,0.99027]
[1734372960976,0.55,4040.3,4038.6,0.7879]
[1734372961180,3.02512,4040.3,4039.1,0.9903]
[1734372961397,0.55,4040.1,4039.2,0.99029]
[1734372961689,2.47517,4040.2,4038.9,0.99034]
[1734372961979,0.55,4039.9,4038.4,0.99047]
[1734372962338,0.55,4039.9,4038.4,1.31583728]
[1734372962764,0.55,4039.9,4038.9,0.99035]
[1734372962973,0.55,4039.7,4039.0,0.99032]
[1734372963273,0.55,4039.9,4039.6,0.99019]
[1734372963476,0.55,4039.9,4039.7,0.99016]
[1734372963776,0.55,4039.9,4039.4,0.99023]
[1734372963935,0.55,4039.9,4038.9,0.32536728]
[1734372964269,0.55,4039.9,4039.4,0.99022]
[1734372964635,0.55,4039.9,4038.9,1.332913]
[1734372964835,0.55,4039.7,4038.1,0.8055]
[1734372965047,0.55,4039.0,4037.0,0.8055]
[1734372965229,0.55,4038.6,4037.8,0.99063]
[1734372965433,0.55,4038.6,4037.2,0.99078]
[1734372965629,0.55,4038.6,4037.5,0.9907]
[1734372965873,0.55,4038.4,4037.5,0.9907]
[1734372966294,0.55,4038.4,4037.1,0.99081]
[1734372966493,0.55,4038.4,4037.5,0.99071]
[1734372966652,0.55,4038.4,4037.6,0.99068]
[1734372966858,1.07150697,4038.4,4037.2,0.99078]
[1734372967285,0.8048,4039.6,4037.6,0.99068]
[1734372967454,0.8048,4039.6,4038.4,3.0]
[1734372967794,0.8048,4039.6,4038.8,0.99037]
[1734372968102,0.8048,4039.6,4039.1,0.9903]
[1734372968403,0.8048,4039.6,4038.7,0.99039]
[1734372968567,0.41909724,4039.5,4038.7,0.99039]
[1734372968961,0.41909724,4039.5,4038.3,3.0]
[1734372968962,0.41909724,4039.5,4038.5,0.99046]
[1734372969166,0.41909724,4039.5,4038.2,1.79603]
[1734372969167,0.55,4039.4,4038.6,0.99042]
[1734372969589,0.55,4039.4,4038.4,0.99049]
[1734372969793,0.55,4039.4,4038.5,0.99046]
[1734372969995,0.55,4039.2,4037.9,3.0]
[1734372970164,0.55,4039.2,4038.2,0.99054]
[1734372970365,0.55,4039.2,4038.3,0.99049]
[1734372970581,0.55,4039.2,4037.9,0.32536728]
[1734372970756,0.55,4039.2,4038.6,0.99043]
[1734372970958,0.55,4039.2,4038.6,0.99041]
[1734372971253,0.55,4039.2,4038.8,0.99039]
[1734372971478,0.55,4039.2,4037.9,0.59089885]
[1734372971479,0.55,4039.2,4038.0,3.99058]
[1734372971691,0.55,4039.5,4039.0,0.99032]
[1734372971896,0.8048,4039.6,4038.6,0.99044]
[1734372972069,0.8048,4039.6,4038.9,0.99034]
[1734372972265,0.8048,4039.6,4038.6,0.99044]
[1734372972578,0.8048,4039.6,4039.0,0.99033]
[1734372973097,0.55,4039.5,4039.0,0.99033]
[1734372974993,0.55,4039.5,4038.7,0.9904]
[1734372975297,0.55,4039.3,4038.7,0.9904]
[1734372975493,0.55,4039.3,4038.1,1.52960788]
[1734372975655,0.55,4039.3,4038.2,3.0]
[1734372975861,0.55,4039.5,4038.7,0.99041]
[1734372976086,0.55,4039.1,4038.1,0.99054]
[1734372976272,0.55,4039.1,4037.9,0.32536728]
[1734372976273,3.93617242,4039.1,4037.2,0.99077]
[1734372976473,3.38617242,4038.6,4037.6,0.99068]
[1734372976810,0.88861724,4038.5,4037.6,0.99068]
[1734372977504,3.38617242,4038.0,4037.3,0.99074]
[1734372977682,0.55,4037.9,4036.8,0.8241]
[1734372977888,0.55,4037.9,4037.3,0.99074]
[1734372978069,0.55,4037.9,4036.8,0.8241]
[1734372978070,0.55,4037.7,4037.1,0.99079]
[1734372978257,0.55,4037.7,4036.4,0.8241]
[1734372978457,0.55,4037.7,4037.0,0.99081]
[1734372978658,0.55,4037.7,4036.7,0.99089]
[1734372978875,0.55,4037.7,4037.1,0.99079]
[1734372979260,0.55,4037.7,4036.5,0.14149988]
[1734372979261,0.55,4037.7,4036.8,0.99086]
[1734372979660,0.55,4037.7,4037.2,0.99076]
[1734372979973,0.55,4037.7,4036.8,0.99086]
[1734372980609,0.55,4037.7,4037.3,0.99075]
[1734372981265,0.55,4037.7,4037.5,0.9907]
[1734372982106,0.55,4037.7,4037.0,0.99083]
[1734372982290,0.55,4037.7,4037.0,0.99081]
[1734372982490,0.55,4037.7,4036.8,0.99088]
[1734372982491,0.55,4037.4,4036.8,0.99088]
[1734372982700,0.55,4037.4,4036.0,0.8271]
[1734372982701,0.7789,4037.3,4036.0,0.8271]
[1734372983013,0.55,4036.9,4036.1,0.99105]
[1734372983181,0.55,4036.9,4036.0,0.8271]
[1734372983384,0.55,4036.9,4036.3,0.991]
[1734372983577,0.94361724,4036.9,4035.8,0.99111]
[1734372984119,0.55,4036.4,4035.9,0.9911]
[1734372984283,0.55,4036.4,4035.4,0.9912]
[1734372984620,0.55,4036.4,4036.3,0.991]
[1734372984768,0.55,4036.9,4036.3,0.991]
[1734372984972,0.55,4036.9,4036.7,0.99089]
[1734372985283,0.55,4036.9,4036.0,0.0247731]
[1734372985481,0.8065,4037.2,4037.1,0.99081]
[1734372985813,1.22576724,4037.2,4037.1,0.99081]
[1734372986013,0.8065,4037.2,4037.1,0.99081]
[1734372986311,0.8065,4037.2,4036.5,0.99095]
[1734372986513,0.8065,4037.2,4036.3,1.7888]
[1734372986816,1.3571,4036.4,4035.8,0.9911]
[1734372986985,1.3571,4036.4,4035.1,0.99128]
[1734372987189,0.55,4036.2,4035.5,0.99119]
[1734372987402,0.7701,4035.8,4035.3,0.99123]
[1734372987715,0.7701,4035.8,4035.1,0.99127]
[1734372987716,0.55,4035.4,4035.1,0.99127]
[1734372988939,0.55,4035.4,4034.8,0.99135]
[1734372988940,0.94361724,4035.4,4034.8,0.99135]
[1734372989225,0.55,4034.9,4033.9,0.99157]
[1734372989517,0.55,4034.4,4033.4,0.26553157]
[1734372989677,0.55,4034.4,4034.0,0.99155]
[1734372990015,0.55,4034.4,4033.1,1.74268]
[1734372990016,0.55,4034.4,4033.9,0.99159]
[1734372990374,0.7574,4034.3,4033.9,0.99159]
[1734372990616,0.55,4034.2,4033.9,0.99159]
[1734372990931,0.55,4034.2,4033.4,0.9917]
[1734372991134,0.55,4034.2,4032.6,1.12296728]
[1734372991436,0.55,4034.0,4033.6,0.99166]
[1734372991635,0.55,4034.0,4033.2,0.99176]
[1734372991791,0.55,4034.0,4033.7,0.99164]
[1734372991990,0.55,4034.0,4033.0,0.9918]
[1734372992238,0.55,4034.0,4033.8,0.99161]
[1734372992536,0.55,4034.0,4033.0,1.31716728]
[1734372992537,3.93617242,4034.0,4033.4,0.99171]
[1734372992703,0.55,4033.8,4033.7,0.99164]
[1734372993089,0.55,4034.0,4033.7,0.99164]
[1734372993289,0.55,4034.0,4033.3,0.99174]
[1734372993531,0.55,4034.0,4033.6,0.99166]
[1734372994095,0.55,4034.0,4033.3,0.99172]
[1734372994394,0.693814,4034.0,4033.4,0.9917]
[1734372994846,0.693814,4034.0,4033.5,0.99168]
[1734372995928,0.693814,4034.0,4033.6,0.99166]
[1734372996094,0.7574,4034.3,4032.8,0.99186]
[1734372996297,0.7729,4035.4,4033.3,0.822]
[1734372996491,0.7729,4035.4,4034.9,0.99134]
[1734372996690,0.7729,4035.4,4033.5,3.0]
[1734372996941,0.7729,4035.4,4035.0,0.99132]
[1734372997148,0.42813563,4035.3,4035.0,0.99132]
[1734372997294,0.42813563,4035.3,4034.6,0.99141]
[1734372997533,0.42813563,4035.3,4034.2,3.7777]
[1734372997732,0.7729,4035.4,4034.3,3.0]
[1734372997928,0.7729,4035.4,4035.3,0.99125]
[1734372998171,0.7765,4036.4,4036.0,0.99106]
[1734372998478,0.7765,4036.4,4034.5,0.99144]
[1734372998479,4.16267242,4036.4,4035.2,0.02477785]
[1734372998786,0.8001,4035.6,4033.9,0.8269]
[1734372999071,0.8001,4035.6,4034.0,3.0]
[1734372999370,0.8001,4035.6,4035.4,0.99122]
[1734372999775,0.55,4035.5,4035.0,3.0]
[1734372999958,0.7508,4036.0,4035.4,3.0]
[1734373000179,0.7508,4036.7,4036.0,0.99106]
[1734373000494,1.10165606,4036.7,4035.6,0.99115]
[1734373000664,3.38617242,4036.3,4034.9,3.0]
[1734373000867,0.7975,4036.2,4035.4,0.99121]
[1734373001392,0.55,4036.1,4035.4,0.99121]
[1734373001564,0.55,4036.1,4034.9,3.0]
[1734373001892,0.55,4036.1,4034.9,3.37633]
[1734373002096,0.55,4036.1,4035.4,0.9912]
[1734373002479,0.55,4036.1,4035.1,0.9913]
[1734373002685,0.12238822,4036.8,4035.2,0.02477899]
[1734373002862,0.7735,4036.7,4035.4,0.99122]
[1734373003059,2.47666,4037.7,4036.9,0.99085]
[1734373003060,0.7735,4037.7,4036.9,0.99085]
[1734373003398,0.7735,4037.7,4036.8,0.99087]
[1734373003896,0.7735,4037.7,4037.0,0.99082]
[1734373003897,0.12672953,4037.5,4037.0,0.99082]
[1734373004195,0.56765794,4037.5,4036.3,0.755]
[1734373004366,0.56765794,4037.5,4036.3,3.755]
[1734373004696,0.56765794,4037.5,4035.9,0.8186]
[1734373004697,0.7818,4037.4,4035.9,0.8186]
[1734373004897,0.7818,4037.4,4036.6,0.99093]
[1734373005067,0.7818,4037.4,4036.3,0.99098]
[1734373005272,0.38261779,4037.3,4036.3,0.99098]
[1734373005459,0.38261779,4037.3,4035.9,0.8186]
[1734373005659,0.55,4037.3,4036.6,0.99092]
[1734373007404,0.55,4037.3,4035.9,0.8186]
[1734373007608,0.55,4037.3,4036.6,0.99091]
[1734373008062,0.55,4037.3,4036.2,0.99103]
[1734373008263,0.55,4037.3,4036.7,0.9909]
[1734373008583,0.55,4037.1,4036.7,0.9909]
[1734373009307,0.55,4037.1,4036.5,0.99095]
[1734373009512,3.38617242,4036.8,4035.7,3.0]
[1734373009667,0.55,4036.6,4035.4,0.8051]
[1734373010011,0.55,4036.6,4035.5,0.179634]
[1734373010305,0.55,4036.6,4035.8,0.99112]
[1734373010481,3.38617242,4036.3,4035.5,0.99118]
[1734373010804,0.55,4036.0,4035.0,1.79641]
[1734373011119,0.55,4036.0,4035.0,0.8051]
[1734373011277,0.55,4036.0,4035.2,0.99127]
[1734373011609,0.55,4036.0,4035.2,0.278767]
[1734373011900,0.55,4036.0,4035.7,0.99113]
[1734373012102,0.55,4036.0,4035.3,0.99125]